Workbook

Sheet Нак1
A1: Поставщик:
A2: Покупатель: | D2: Дата: | E2: =TODAY() -> 2019-09-13
A3: № п/п | B3: aaaaТовар | C3: Кол-во, шт. | D3: Цена, руб. | E3: Сумма, руб.
A4: =ROW()-3 -> 1 | B4: Грин костюм, графит, размер 42. Штрих-код 4650105044629 | C4: 12 | D4: =VLOOKUP(ТабЧастьНакладной[[ aaaaТовар]],Модель!$E$3:$F$953,2,0) -> 765 | E4: =C4*D4 -> 9180
A5: =ROW()-3 -> 2 | B5: Грин костюм, графит, размер 44. Штрих-код 4650105044636 | C5: 14 | D5: =VLOOKUP(ТабЧастьНакладной[[ aaaaТовар]],Модель!$E$3:$F$953,2,0) -> 765 | E5: =C5*D5 -> 10710
A6: =ROW()-3 -> 3 | B6: Грин костюм, графит, размер 46. Штрих-код 4650105044643 | C6: 23 | D6: =VLOOKUP(ТабЧастьНакладной[[ aaaaТовар]],Модель!$E$3:$F$953,2,0) -> 765 | E6: =C6*D6 -> 17595
A7: =ROW()-3 -> 4 | B7: Грин костюм, графит, размер 48. Штрих-код 4650105044650 | C7: 45 | D7: =VLOOKUP(ТабЧастьНакладной[[ aaaaТовар]],Модель!$E$3:$F$953,2,0) -> 765 | E7: =C7*D7 -> 34425
A8: =ROW()-3 -> 5 | B8: Грин костюм, графит, размер 50. Штрих-код 4650105044667 | C8: 67 | D8: =VLOOKUP(ТабЧастьНакладной[[ aaaaТовар]],Модель!$E$3:$F$953,2,0) -> 765 | E8: =C8*D8 -> 51255
A9: =ROW()-3 -> 6 | B9: Грин костюм, графит, размер 52. Штрих-код 4650105044674 | C9: 65 | D9: =VLOOKUP(ТабЧастьНакладной[[ aaaaТовар]],Модель!$E$3:$F$953,2,0) -> 765 | E9: =C9*D9 -> 49725
A10: =ROW()-3 -> 7 | B10: Грин костюм, индиго, размер 42. Штрих-код:4650105044681 | C10: 78 | D10: =VLOOKUP(ТабЧастьНакладной[[ aaaaТовар]],Модель!$E$3:$F$953,2,0) -> 765 | E10: =C10*D10 -> 59670
A11: =ROW()-3 -> 8 | B11: Грин костюм, индиго, размер 44. Штрих-код:4650105044698 | C11: 23 | D11: =VLOOKUP(ТабЧастьНакладной[[ aaaaТовар]],Модель!$E$3:$F$953,2,0) -> 765 | E11: =C11*D11 -> 17595
A12: =ROW()-3 -> 9 | B12: Грин костюм, индиго, размер 46. Штрих-код:4650105044704 | C12: 12 | D12: =VLOOKUP(ТабЧастьНакладной[[ aaaaТовар]],Модель!$E$3:$F$953,2,0) -> 765 | E12: =C12*D12 -> 9180
A13: =ROW()-3 -> 10 | B13: Грин костюм, индиго, размер 48. Штрих-код:4650105044711 | C13: 34 | D13: =VLOOKUP(ТабЧастьНакладной[[ aaaaТовар]],Модель!$E$3:$F$953,2,0) -> 765 | E13: =C13*D13 -> 26010
A14: =ROW()-3 -> 11 | B14: Грин костюм, индиго, размер 50. Штрих-код:4650105044728 | C14: 45 | D14: =VLOOKUP(ТабЧастьНакладной[[ aaaaТовар]],Модель!$E$3:$F$953,2,0) -> 765 | E14: =C14*D14 -> 34425
A15: =ROW()-3 -> 12 | B15: Грин костюм, индиго, размер 52. Штрих-код:4650105044735 | C15: 32 | D15: =VLOOKUP(ТабЧастьНакладной[[ aaaaТовар]],Модель!$E$3:$F$953,2,0) -> 765 | E15: =C15*D15 -> 24480
A16: =ROW()-3 -> 13 | B16: Дерево туника, графит, размер 44, Штрих-код 4650105277355 | C16: 1 | D16: =VLOOKUP(ТабЧастьНакладной[[ aaaaТовар]],Модель!$E$3:$F$953,2,0) -> 360 | E16: =C16*D16 -> 360
A17: =ROW()-3 -> 14 | B17: Дерево туника, графит, размер 46, Штрих-код 4650105277362 | C17: 2 | D17: =VLOOKUP(ТабЧастьНакладной[[ aaaaТовар]],Модель!$E$3:$F$953,2,0) -> 360 | E17: =C17*D17 -> 720
A18: =ROW()-3 -> 15 | B18: Дерево туника, графит, размер 48, Штрих-код 4650105277379 | C18: 3 | D18: =VLOOKUP(ТабЧастьНакладной[[ aaaaТовар]],Модель!$E$3:$F$953,2,0) -> 360 | E18: =C18*D18 -> 1080
A19: =ROW()-3 -> 16 | B19: Дерево туника, графит, размер 50, Штрих-код 4650105277386 | C19: 4 | D19: =VLOOKUP(ТабЧастьНакладной[[ aaaaТовар]],Модель!$E$3:$F$953,2,0) -> 360 | E19: =C19*D19 -> 1440
A20: =ROW()-3 -> 17 | B20: Дерево туника, графит, размер 52, Штрих-код 4650105277393 | C20: 5 | D20: =VLOOKUP(ТабЧастьНакладной[[ aaaaТовар]],Модель!$E$3:$F$953,2,0) -> 360 | E20: =C20*D20 -> 1800
A21: =ROW()-3 -> 18 | B21: Дерево туника, графит, размер 54, Штрих-код 4650105277409 | C21: 6 | D21: =VLOOKUP(ТабЧастьНакладной[[ aaaaТовар]],Модель!$E$3:$F$953,2,0) -> 360 | E21: =C21*D21 -> 2160
A22: =ROW()-3 -> 19 | B22: Дерево туника, графит, размер 56, Штрих-код 4650105277416 | C22: 7 | D22: =VLOOKUP(ТабЧастьНакладной[[ aaaaТовар]],Модель!$E$3:$F$953,2,0) -> 360 | E22: =C22*D22 -> 2520
A23: =ROW()-3 -> 20 | B23: Дерево туника, графит, размер 58, Штрих-код 4650105277423 | C23: 8 | D23: =VLOOKUP(ТабЧастьНакладной[[ aaaaТовар]],Модель!$E$3:$F$953,2,0) -> 360 | E23: =C23*D23 -> 2880
A24: =ROW()-3 -> 21 | B24: Дерево туника, индиго, размер 44, Штрих-код 4650105277270 | C24: 9 | D24: =VLOOKUP(ТабЧастьНакладной[[ aaaaТовар]],Модель!$E$3:$F$953,2,0) -> 360 | E24: =C24*D24 -> 3240
A25: =ROW()-3 -> 22 | B25: Дзен кофта, меланж, размер 48. Штрих-код: 4650105137154 | C25: 8 | D25: =VLOOKUP(ТабЧастьНакладной[[ aaaaТовар]],Модель!$E$3:$F$953,2,0) -> 320 | E25: =C25*D25 -> 2560
A26: =ROW()-3 -> 23 | B26: Дзен кофта, меланж, размер 50. Штрих-код: 4650105137161 | C26: 7 | D26: =VLOOKUP(ТабЧастьНакладной[[ aaaaТовар]],Модель!$E$3:$F$953,2,0) -> 320 | E26: =C26*D26 -> 2240
A27: =ROW()-3 -> 24 | B27: Дзен кофта, меланж, размер 52. Штрих-код: 4650105137178 | C27: 6 | D27: =VLOOKUP(ТабЧастьНакладной[[ aaaaТовар]],Модель!$E$3:$F$953,2,0) -> 320 | E27: =C27*D27 -> 1920
A28: =ROW()-3 -> 25 | B28: Дымка футболка, белый, размер 44, Штрих-код 4650105315484 | C28: 5 | D28: =VLOOKUP(ТабЧастьНакладной[[ aaaaТовар]],Модель!$E$3:$F$953,2,0) -> 250 | E28: =C28*D28 -> 1250
A29: =ROW()-3 -> 26 | B29: Дымка футболка, белый, размер 46, Штрих-код 4650105315491 | C29: 4 | D29: =VLOOKUP(ТабЧастьНакладной[[ aaaaТовар]],Модель!$E$3:$F$953,2,0) -> 250 | E29: =C29*D29 -> 1000
A30: =ROW()-3 -> 27 | B30: Дымка футболка, белый, размер 48, Штрих-код 4650105315507 | C30: 3 | D30: =VLOOKUP(ТабЧастьНакладной[[ aaaaТовар]],Модель!$E$3:$F$953,2,0) -> 250 | E30: =C30*D30 -> 750
A31: =ROW()-3 -> 28 | D31: =VLOOKUP(ТабЧастьНакладной[[ aaaaТовар]],Модель!$E$3:$F$953,2,0) ->  | E31: =C31*D31 -> 
A32: Итог | E32: =SUMIF(ТабЧастьНакладной[Сумма, руб.],"<1E100") -> 370170
D33: НДС не облагается
A34: ="Всего наименований:"&" "&MAX(ТабЧастьНакладной[№ п/п])&","&" "&"на сумму"&" "&СП&" "&"руб." -> Всего наименований: 28, на сумму 370170 руб.
A35: =SUBSTITUTE(PROPER(INDEX(n_4,MID(TEXT(СП,n0),1,1)+1)&INDEX(n0x,MID(TEXT(СП,n0),2,1)+1,MID(TEXT(СП,n0),3,1)+1)&IF(-MID(TEXT(СП,n0),1,3),"миллиард"&VLOOKUP(MID(TEXT(СП,n0),3,1)*AND(MID(TEXT(СП,n0),2,1)-1),мил,2),"")&INDEX(n_4,MID(TEXT(СП,n0),4,1)+1)&INDEX(n0x,MID(TEXT(СП,n0),5,1)+1,MID(TEXT(СП,n0),6,1)+1)&IF(-MID(TEXT(СП,n0),4,3),"миллион"&VLOOKUP(MID(TEXT(СП,n0),6,1)*AND(MID(TEXT(СП,n0),5,1)-1),мил,2),"")&INDEX(n_4,MID(TEXT(СП,n0),7,1)+1)&INDEX(n1x,MID(TEXT(СП,n0),8,1)+1,MID(TEXT(СП,n0),9,1)+1)&IF(-MID(TEXT(СП,n0),7,3),VLOOKUP(MID(TEXT(СП,n0),9,1)*AND(MID(TEXT(СП,n0),8,1)-1),тыс,2),"")&INDEX(n_4,MID(TEXT(СП,n0),10,1)+1)&INDEX(n0x,MID(TEXT(СП,n0),11,1)+1,MID(TEXT(СП,n0),12,1)+1)),"z"," ")&IF(TRUNC(TEXT(СП,n0)),"","Ноль ")&"рубл"&VLOOKUP(MOD(MAX(MOD(MID(TEXT(СП,n0),11,2)-11,100),9),10),{0,"ь ";1,"я ";4,"ей "},2)&RIGHT(TEXT(СП,n0),2)&" копе"&VLOOKUP(MOD(MAX(MOD(RIGHT(TEXT(СП,n0),2)-11,100),9),10),{0,"йка";1,"йки";4,"ек"},2) -> Триста семьдесят тысяч сто семьдесят рублей 00 копеек
A37: Отпустил:__________________________ | C37: Получил:_____________________

Sheet Пример
A1: Поставщик:
A2: Покупатель: | D2: Дата: | E2: =TODAY() -> 2019-09-13
A3: № п/п | B3: aaaaТовар | C3: Кол-во, шт. | D3: Цена, руб. | E3: Сумма, руб.
A4: =ROW()-3 -> 1 | B4: Грин костюм, графит, размер 42. Штрих-код 4650105044629 | C4: 12 | D4: =VLOOKUP(ТабЧастьНакладной5[[ aaaaТовар]],Модель!$E$3:$F$953,2,0) -> 765 | E4: =C4*D4 -> 9180
A5: =ROW()-3 -> 2 | B5: Грин костюм, графит, размер 44. Штрих-код 4650105044636 | C5: 14 | D5: =VLOOKUP(ТабЧастьНакладной5[[ aaaaТовар]],Модель!$E$3:$F$953,2,0) -> 765 | E5: =C5*D5 -> 10710
A6: =ROW()-3 -> 3 | B6: Грин костюм, графит, размер 46. Штрих-код 4650105044643 | C6: 23 | D6: =VLOOKUP(ТабЧастьНакладной5[[ aaaaТовар]],Модель!$E$3:$F$953,2,0) -> 765 | E6: =C6*D6 -> 17595
A7: =ROW()-3 -> 4 | B7: Грин костюм, графит, размер 48. Штрих-код 4650105044650 | C7: 45 | D7: =VLOOKUP(ТабЧастьНакладной5[[ aaaaТовар]],Модель!$E$3:$F$953,2,0) -> 765 | E7: =C7*D7 -> 34425
A8: =ROW()-3 -> 5 | B8: Грин костюм, графит, размер 50. Штрих-код 4650105044667 | C8: 67 | D8: =VLOOKUP(ТабЧастьНакладной5[[ aaaaТовар]],Модель!$E$3:$F$953,2,0) -> 765 | E8: =C8*D8 -> 51255
A9: =ROW()-3 -> 6 | B9: Грин костюм, графит, размер 52. Штрих-код 4650105044674 | C9: 65 | D9: =VLOOKUP(ТабЧастьНакладной5[[ aaaaТовар]],Модель!$E$3:$F$953,2,0) -> 765 | E9: =C9*D9 -> 49725
A10: =ROW()-3 -> 7 | B10: Грин костюм, индиго, размер 42. Штрих-код:4650105044681 | C10: 78 | D10: =VLOOKUP(ТабЧастьНакладной5[[ aaaaТовар]],Модель!$E$3:$F$953,2,0) -> 765 | E10: =C10*D10 -> 59670
A11: =ROW()-3 -> 8 | B11: Грин костюм, индиго, размер 44. Штрих-код:4650105044698 | C11: 23 | D11: =VLOOKUP(ТабЧастьНакладной5[[ aaaaТовар]],Модель!$E$3:$F$953,2,0) -> 765 | E11: =C11*D11 -> 17595
A12: =ROW()-3 -> 9 | B12: Грин костюм, индиго, размер 46. Штрих-код:4650105044704 | C12: 12 | D12: =VLOOKUP(ТабЧастьНакладной5[[ aaaaТовар]],Модель!$E$3:$F$953,2,0) -> 765 | E12: =C12*D12 -> 9180
A13: =ROW()-3 -> 10 | B13: Грин костюм, индиго, размер 48. Штрих-код:4650105044711 | C13: 34 | D13: =VLOOKUP(ТабЧастьНакладной5[[ aaaaТовар]],Модель!$E$3:$F$953,2,0) -> 765 | E13: =C13*D13 -> 26010
A14: =ROW()-3 -> 11 | B14: Грин костюм, индиго, размер 50. Штрих-код:4650105044728 | C14: 45 | D14: =VLOOKUP(ТабЧастьНакладной5[[ aaaaТовар]],Модель!$E$3:$F$953,2,0) -> 765 | E14: =C14*D14 -> 34425
A15: =ROW()-3 -> 12 | B15: Грин костюм, индиго, размер 52. Штрих-код:4650105044735 | C15: 32 | D15: =VLOOKUP(ТабЧастьНакладной5[[ aaaaТовар]],Модель!$E$3:$F$953,2,0) -> 765 | E15: =C15*D15 -> 24480
C16: =SUBTOTAL(109,C4:C15) -> 450 | D16: =VLOOKUP(ТабЧастьНакладной5[[ aaaaТовар]],Модель!$E$3:$F$953,2,0) ->  | E16: =C16*D16 -> 
A17: =ROW()-3 -> 14 | B17: Дерево туника, графит, размер 44, Штрих-код 4650105277355 | C17: 1 | D17: =VLOOKUP(ТабЧастьНакладной5[[ aaaaТовар]],Модель!$E$3:$F$953,2,0) -> 360 | E17: =C17*D17 -> 360
A18: =ROW()-3 -> 15 | B18: Дерево туника, графит, размер 46, Штрих-код 4650105277362 | C18: 2 | D18: =VLOOKUP(ТабЧастьНакладной5[[ aaaaТовар]],Модель!$E$3:$F$953,2,0) -> 360 | E18: =C18*D18 -> 720
A19: =ROW()-3 -> 16 | B19: Дерево туника, графит, размер 48, Штрих-код 4650105277379 | C19: 3 | D19: =VLOOKUP(ТабЧастьНакладной5[[ aaaaТовар]],Модель!$E$3:$F$953,2,0) -> 360 | E19: =C19*D19 -> 1080
A20: =ROW()-3 -> 17 | B20: Дерево туника, графит, размер 50, Штрих-код 4650105277386 | C20: 4 | D20: =VLOOKUP(ТабЧастьНакладной5[[ aaaaТовар]],Модель!$E$3:$F$953,2,0) -> 360 | E20: =C20*D20 -> 1440
A21: =ROW()-3 -> 18 | B21: Дерево туника, графит, размер 52, Штрих-код 4650105277393 | C21: 5 | D21: =VLOOKUP(ТабЧастьНакладной5[[ aaaaТовар]],Модель!$E$3:$F$953,2,0) -> 360 | E21: =C21*D21 -> 1800
A22: =ROW()-3 -> 19 | B22: Дерево туника, графит, размер 54, Штрих-код 4650105277409 | C22: 6 | D22: =VLOOKUP(ТабЧастьНакладной5[[ aaaaТовар]],Модель!$E$3:$F$953,2,0) -> 360 | E22: =C22*D22 -> 2160
A23: =ROW()-3 -> 20 | B23: Дерево туника, графит, размер 56, Штрих-код 4650105277416 | C23: 7 | D23: =VLOOKUP(ТабЧастьНакладной5[[ aaaaТовар]],Модель!$E$3:$F$953,2,0) -> 360 | E23: =C23*D23 -> 2520
A24: =ROW()-3 -> 21 | B24: Дерево туника, графит, размер 58, Штрих-код 4650105277423 | C24: 8 | D24: =VLOOKUP(ТабЧастьНакладной5[[ aaaaТовар]],Модель!$E$3:$F$953,2,0) -> 360 | E24: =C24*D24 -> 2880
A25: =ROW()-3 -> 22 | B25: Дерево туника, индиго, размер 44, Штрих-код 4650105277270 | C25: 9 | D25: =VLOOKUP(ТабЧастьНакладной5[[ aaaaТовар]],Модель!$E$3:$F$953,2,0) -> 360 | E25: =C25*D25 -> 3240
C26: =SUBTOTAL(109,C17:C25) -> 45
A27: =ROW()-3 -> 24 | B27: Дзен кофта, меланж, размер 48. Штрих-код: 4650105137154 | C27: 8 | D27: =VLOOKUP(ТабЧастьНакладной5[[ aaaaТовар]],Модель!$E$3:$F$953,2,0) -> 320 | E27: =C27*D27 -> 2560
A28: =ROW()-3 -> 25 | B28: Дзен кофта, меланж, размер 50. Штрих-код: 4650105137161 | C28: 7 | D28: =VLOOKUP(ТабЧастьНакладной5[[ aaaaТовар]],Модель!$E$3:$F$953,2,0) -> 320 | E28: =C28*D28 -> 2240
A29: =ROW()-3 -> 26 | B29: Дзен кофта, меланж, размер 52. Штрих-код: 4650105137178 | C29: 6 | D29: =VLOOKUP(ТабЧастьНакладной5[[ aaaaТовар]],Модель!$E$3:$F$953,2,0) -> 320 | E29: =C29*D29 -> 1920
C30: =SUBTOTAL(109,C27:C29) -> 21 | D30: =VLOOKUP(ТабЧастьНакладной5[[ aaaaТовар]],Модель!$E$3:$F$953,2,0) ->  | E30: =C30*D30 -> 
A31: =ROW()-3 -> 28 | B31: Дымка футболка, белый, размер 44, Штрих-код 4650105315484 | C31: 5 | D31: =VLOOKUP(ТабЧастьНакладной5[[ aaaaТовар]],Модель!$E$3:$F$953,2,0) -> 250 | E31: =C31*D31 -> 1250
A32: =ROW()-3 -> 29 | B32: Дымка футболка, белый, размер 46, Штрих-код 4650105315491 | C32: 4 | D32: =VLOOKUP(ТабЧастьНакладной5[[ aaaaТовар]],Модель!$E$3:$F$953,2,0) -> 250 | E32: =C32*D32 -> 1000
A33: =ROW()-3 -> 30 | B33: Дымка футболка, белый, размер 48, Штрих-код 4650105315507 | C33: 3 | D33: =VLOOKUP(ТабЧастьНакладной5[[ aaaaТовар]],Модель!$E$3:$F$953,2,0) -> 250 | E33: =C33*D33 -> 750
C34: =SUBTOTAL(109,C31:C33) -> 12
A35: Итог | E35: =SUMIF(ТабЧастьНакладной5[Сумма, руб.],"<1E100") -> 370170
D36: НДС не облагается
A37: ="Всего наименований:"&" "&MAX(ТабЧастьНакладной5[№ п/п])&","&" "&"на сумму"&" "&СП&" "&"руб." -> Всего наименований: 30, на сумму 370170 руб.
A38: =SUBSTITUTE(PROPER(INDEX(n_4,MID(TEXT(СП,n0),1,1)+1)&INDEX(n0x,MID(TEXT(СП,n0),2,1)+1,MID(TEXT(СП,n0),3,1)+1)&IF(-MID(TEXT(СП,n0),1,3),"миллиард"&VLOOKUP(MID(TEXT(СП,n0),3,1)*AND(MID(TEXT(СП,n0),2,1)-1),мил,2),"")&INDEX(n_4,MID(TEXT(СП,n0),4,1)+1)&INDEX(n0x,MID(TEXT(СП,n0),5,1)+1,MID(TEXT(СП,n0),6,1)+1)&IF(-MID(TEXT(СП,n0),4,3),"миллион"&VLOOKUP(MID(TEXT(СП,n0),6,1)*AND(MID(TEXT(СП,n0),5,1)-1),мил,2),"")&INDEX(n_4,MID(TEXT(СП,n0),7,1)+1)&INDEX(n1x,MID(TEXT(СП,n0),8,1)+1,MID(TEXT(СП,n0),9,1)+1)&IF(-MID(TEXT(СП,n0),7,3),VLOOKUP(MID(TEXT(СП,n0),9,1)*AND(MID(TEXT(СП,n0),8,1)-1),тыс,2),"")&INDEX(n_4,MID(TEXT(СП,n0),10,1)+1)&INDEX(n0x,MID(TEXT(СП,n0),11,1)+1,MID(TEXT(СП,n0),12,1)+1)),"z"," ")&IF(TRUNC(TEXT(СП,n0)),"","Ноль ")&"рубл"&VLOOKUP(MOD(MAX(MOD(MID(TEXT(СП,n0),11,2)-11,100),9),10),{0,"ь ";1,"я ";4,"ей "},2)&RIGHT(TEXT(СП,n0),2)&" копе"&VLOOKUP(MOD(MAX(MOD(RIGHT(TEXT(СП,n0),2)-11,100),9),10),{0,"йка";1,"йки";4,"ек"},2) -> Триста семьдесят тысяч сто семьдесят рублей 00 копеек
A40: Отпустил:__________________________ | C40: Получил:_____________________

Sheet Модель
A1: Модель | B1: Цвет | C1: Размер | D1: Штрих-код | E1: Товар | F1: Цена | H1: Магазин
A3: Брейк трико | B3: черный | C3: 30 | D3: 2000003750221 | E3: Брейк трико, черный, размер 30, Штрих-код 2000003750221 | F3: 250 | H3: Покупатель:
A4: Брейк трико | B4: черный | C4: 32 | D4: 2000003750238 | E4: Брейк трико, черный, размер 32, Штрих-код 2000003750238 | F4: 250 | H4: Покупатель:
A5: Брейк трико | B5: черный | C5: 34 | D5: 2000003750245 | E5: Брейк трико, черный, размер 34, Штрих-код 2000003750245 | F5: 250 | H5: Покупатель:
A6: Брейк трико | B6: черный | C6: 36 | D6: 2000003750252 | E6: Брейк трико, черный, размер 36, Штрих-код 2000003750252 | F6: 250 | H6: Покупатель:
A7: Брейк трико | B7: черный | C7: 38 | D7: 2000003750269 | E7: Брейк трико, черный, размер 38, Штрих-код 2000003750269 | F7: 250 | H7: Покупатель:
A8: Брейк трико | B8: черный | C8: 40 | D8: 2000003750276 | E8: Брейк трико, черный, размер 40, Штрих-код 2000003750276 | F8: 250 | H8: Покупатель:
A9: Брейк трико | B9: черный | C9: 42 | D9: 2000003750283 | E9: Брейк трико, черный, размер 42, Штрих-код 2000003750283 | F9: 250
A10: Вуаль футболка | B10: молочный | C10: 44 | D10: 4650105315002 | E10: Вуаль футболка, молочный, размер 44, Штрих-код 4650105315002 | F10: 270
A11: Вуаль футболка | B11: молочный | C11: 46 | D11: 4650105315019 | E11: Вуаль футболка, молочный, размер 46, Штрих-код 4650105315019 | F11: 270
A12: Вуаль футболка | B12: молочный | C12: 48 | D12: 4650105315026 | E12: Вуаль футболка, молочный, размер 48, Штрих-код 4650105315026 | F12: 270
A13: Вуаль футболка | B13: молочный | C13: 50 | D13: 4650105315033 | E13: Вуаль футболка, молочный, размер 50, Штрих-код 4650105315033 | F13: 270
A14: Вуаль футболка | B14: молочный | C14: 52 | D14: 4650105315040 | E14: Вуаль футболка, молочный, размер 52, Штрих-код 4650105315040 | F14: 270
A15: Вуаль футболка | B15: молочный | C15: 54 | D15: 4650105315057 | E15: Вуаль футболка, молочный, размер 54, Штрих-код 4650105315057 | F15: 270
A16: Вуаль футболка | B16: молочный | C16: 56 | D16: 4650105315064 | E16: Вуаль футболка, молочный, размер 56, Штрих-код 4650105315064 | F16: 270
A17: Вуаль футболка | B17: молочный | C17: 58 | D17: 4650105315071 | E17: Вуаль футболка, молочный, размер 58, Штрих-код 4650105315071 | F17: 270
A18: Вуаль футболка | B18: черный | C18: 44 | D18: 4650105315088 | E18: Вуаль футболка, черный, размер 44, Штрих-код 4650105315088 | F18: 270
A19: Вуаль футболка | B19: черный | C19: 46 | D19: 4650105315095 | E19: Вуаль футболка, черный, размер 46, Штрих-код 4650105315095 | F19: 270
A20: Вуаль футболка | B20: черный | C20: 48 | D20: 4650105315101 | E20: Вуаль футболка, черный, размер 48, Штрих-код 4650105315101 | F20: 270
A21: Вуаль футболка | B21: черный | C21: 50 | D21: 4650105315118 | E21: Вуаль футболка, черный, размер 50, Штрих-код 4650105315118 | F21: 270
A22: Вуаль футболка | B22: черный | C22: 52 | D22: 4650105315125 | E22: Вуаль футболка, черный, размер 52, Штрих-код 4650105315125 | F22: 270
A23: Вуаль футболка | B23: черный | C23: 54 | D23: 4650105315132 | E23: Вуаль футболка, черный, размер 54, Штрих-код 4650105315132 | F23: 270
A24: Вуаль футболка | B24: черный | C24: 56 | D24: 4650105315149 | E24: Вуаль футболка, черный, размер 56, Штрих-код 4650105315149 | F24: 270
A25: Вуаль футболка | B25: черный | C25: 58 | D25: 4650105315156 | E25: Вуаль футболка, черный, размер 58, Штрих-код 4650105315156 | F25: 270
A26: Вэст футболка | B26: бордовый | C26: 46 | D26: 4650105293003 | E26: Вэст футболка, бордовый, размер 46, Штрих-код 4650105293003 | F26: 270
A27: Вэст футболка | B27: бордовый | C27: 48 | D27: 4650105293010 | E27: Вэст футболка, бордовый, размер 48, Штрих-код 4650105293010 | F27: 270
A28: Вэст футболка | B28: бордовый | C28: 50 | D28: 4650105293027 | E28: Вэст футболка, бордовый, размер 50, Штрих-код 4650105293027 | F28: 270
A29: Вэст футболка | B29: бордовый | C29: 52 | D29: 4650105293034 | E29: Вэст футболка, бордовый, размер 52, Штрих-код 4650105293034 | F29: 270
A30: Вэст футболка | B30: бордовый | C30: 54 | D30: 4650105293041 | E30: Вэст футболка, бордовый, размер 54, Штрих-код 4650105293041 | F30: 270
A31: Вэст футболка | B31: бордовый | C31: 56 | D31: 4650105293058 | E31: Вэст футболка, бордовый, размер 56, Штрих-код 4650105293058 | F31: 270
A32: Вэст футболка | B32: бордовый | C32: 58 | D32: 4650105293065 | E32: Вэст футболка, бордовый, размер 58, Штрих-код 4650105293065 | F32: 270
A33: Вэст футболка | B33: бордовый | C33: 60 | D33: 4650105293072 | E33: Вэст футболка, бордовый, размер 60, Штрих-код 4650105293072 | F33: 270
A34: Вэст футболка | B34: бордовый | C34: 62 | D34: 4650105293089 | E34: Вэст футболка, бордовый, размер 62, Штрих-код 4650105293089 | F34: 270
A35: Вэст футболка | B35: бордовый | C35: 64 | D35: 4650105293096 | E35: Вэст футболка, бордовый, размер 64, Штрих-код 4650105293096 | F35: 270
A36: Вэст футболка | B36: темно-синий | C36: 46 | D36: 4650105293102 | E36: Вэст футболка, темно-синий, размер 46, Штрих-код 4650105293102 | F36: 270
A37: Вэст футболка | B37: темно-синий | C37: 48 | D37: 4650105293119 | E37: Вэст футболка, темно-синий, размер 48, Штрих-код 4650105293119 | F37: 270
A38: Вэст футболка | B38: темно-синий | C38: 50 | D38: 4650105293126 | E38: Вэст футболка, темно-синий, размер 50, Штрих-код 4650105293126 | F38: 270
A39: Вэст футболка | B39: темно-синий | C39: 52 | D39: 4650105293133 | E39: Вэст футболка, темно-синий, размер 52, Штрих-код 4650105293133 | F39: 270
A40: Вэст футболка | B40: темно-синий | C40: 54 | D40: 4650105293140 | E40: Вэст футболка, темно-синий, размер 54, Штрих-код 4650105293140 | F40: 270
A41: Вэст футболка | B41: темно-синий | C41: 56 | D41: 4650105293157 | E41: Вэст футболка, темно-синий, размер 56, Штрих-код 4650105293157 | F41: 270
A42: Вэст футболка | B42: темно-синий | C42: 58 | D42: 4650105293164 | E42: Вэст футболка, темно-синий, размер 58, Штрих-код 4650105293164 | F42: 270
A43: Вэст футболка | B43: темно-синий | C43: 60 | D43: 4650105293171 | E43: Вэст футболка, темно-синий, размер 60, Штрих-код 4650105293171 | F43: 270
A44: Вэст футболка | B44: темно-синий | C44: 62 | D44: 4650105293188 | E44: Вэст футболка, темно-синий, размер 62, Штрих-код 4650105293188 | F44: 270
A45: Вэст футболка | B45: темно-синий | C45: 64 | D45: 4650105293195 | E45: Вэст футболка, темно-синий, размер 64, Штрих-код 4650105293195 | F45: 270
A46: Грин костюм | B46: графит | C46: 42 | D46: 4650105044629 | E46: Грин костюм, графит, размер 42. Штрих-код 4650105044629 | F46: 765
A47: Грин костюм | B47: графит | C47: 44 | D47: 4650105044636 | E47: Грин костюм, графит, размер 44. Штрих-код 4650105044636 | F47: 765
A48: Грин костюм | B48: графит | C48: 46 | D48: 4650105044643 | E48: Грин костюм, графит, размер 46. Штрих-код 4650105044643 | F48: 765
A49: Грин костюм | B49: графит | C49: 48 | D49: 4650105044650 | E49: Грин костюм, графит, размер 48. Штрих-код 4650105044650 | F49: 765
A50: Грин костюм | B50: графит | C50: 50 | D50: 4650105044667 | E50: Грин костюм, графит, размер 50. Штрих-код 4650105044667 | F50: 765
A51: Грин костюм | B51: графит | C51: 52 | D51: 4650105044674 | E51: Грин костюм, графит, размер 52. Штрих-код 4650105044674 | F51: 765
A52: Грин костюм | B52: индиго | C52: 42 | D52: 4650105044681 | E52: Грин костюм, индиго, размер 42. Штрих-код:4650105044681 | F52: 765
A53: Грин костюм | B53: индиго | C53: 44 | D53: 4650105044698 | E53: Грин костюм, индиго, размер 44. Штрих-код:4650105044698 | F53: 765
A54: Грин костюм | B54: индиго | C54: 46 | D54: 4650105044704 | E54: Грин костюм, индиго, размер 46. Штрих-код:4650105044704 | F54: 765
A55: Грин костюм | B55: индиго | C55: 48 | D55: 4650105044711 | E55: Грин костюм, индиго, размер 48. Штрих-код:4650105044711 | F55: 765
A56: Грин костюм | B56: индиго | C56: 50 | D56: 4650105044728 | E56: Грин костюм, индиго, размер 50. Штрих-код:4650105044728 | F56: 765
A57: Грин костюм | B57: индиго | C57: 52 | D57: 4650105044735 | E57: Грин костюм, индиго, размер 52. Штрих-код:4650105044735 | F57: 765
A58: Дерево туника | B58: графит | C58: 44 | D58: 4650105277355 | E58: Дерево туника, графит, размер 44, Штрих-код 4650105277355 | F58: 360
A59: Дерево туника | B59: графит | C59: 46 | D59: 4650105277362 | E59: Дерево туника, графит, размер 46, Штрих-код 4650105277362 | F59: 360
A60: Дерево туника | B60: графит | C60: 48 | D60: 4650105277379 | E60: Дерево туника, графит, размер 48, Штрих-код 4650105277379 | F60: 360
A61: Дерево туника | B61: графит | C61: 50 | D61: 4650105277386 | E61: Дерево туника, графит, размер 50, Штрих-код 4650105277386 | F61: 360
A62: Дерево туника | B62: графит | C62: 52 | D62: 4650105277393 | E62: Дерево туника, графит, размер 52, Штрих-код 4650105277393 | F62: 360
A63: Дерево туника | B63: графит | C63: 54 | D63: 4650105277409 | E63: Дерево туника, графит, размер 54, Штрих-код 4650105277409 | F63: 360
A64: Дерево туника | B64: графит | C64: 56 | D64: 4650105277416 | E64: Дерево туника, графит, размер 56, Штрих-код 4650105277416 | F64: 360
A65: Дерево туника | B65: графит | C65: 58 | D65: 4650105277423 | E65: Дерево туника, графит, размер 58, Штрих-код 4650105277423 | F65: 360
A66: Дерево туника | B66: индиго | C66: 44 | D66: 4650105277270 | E66: Дерево туника, индиго, размер 44, Штрих-код 4650105277270 | F66: 360
A67: Дерево туника | B67: индиго | C67: 46 | D67: 4650105277287 | E67: Дерево туника, индиго, размер 46, Штрих-код 4650105277287 | F67: 360
A68: Дерево туника | B68: индиго | C68: 48 | D68: 4650105277294 | E68: Дерево туника, индиго, размер 48, Штрих-код 4650105277294 | F68: 360
A69: Дерево туника | B69: индиго | C69: 50 | D69: 4650105277300 | E69: Дерево туника, индиго, размер 50, Штрих-код 4650105277300 | F69: 360
A70: Дерево туника | B70: индиго | C70: 52 | D70: 4650105277317 | E70: Дерево туника, индиго, размер 52, Штрих-код 4650105277317 | F70: 360
A71: Дерево туника | B71: индиго | C71: 54 | D71: 4650105277324 | E71: Дерево туника, индиго, размер 54, Штрих-код 4650105277324 | F71: 360
A72: Дерево туника | B72: индиго | C72: 56 | D72: 4650105277331 | E72: Дерево туника, индиго, размер 56, Штрих-код 4650105277331 | F72: 360
A73: Дерево туника | B73: индиго | C73: 58 | D73: 4650105277348 | E73: Дерево туника, индиго, размер 58, Штрих-код 4650105277348 | F73: 360
A74: Дзен кофта | B74: меланж | C74: 42 | D74: 4650105137123 | E74: Дзен кофта, меланж, размер 42. Штрих-код: 4650105137123 | F74: 320
A75: Дзен кофта | B75: меланж | C75: 44 | D75: 4650105137130 | E75: Дзен кофта, меланж, размер 44. Штрих-код: 4650105137130 | F75: 320
A76: Дзен кофта | B76: меланж | C76: 46 | D76: 4650105137147 | E76: Дзен кофта, меланж, размер 46. Штрих-код: 4650105137147 | F76: 320
A77: Дзен кофта | B77: меланж | C77: 48 | D77: 4650105137154 | E77: Дзен кофта, меланж, размер 48. Штрих-код: 4650105137154 | F77: 320
A78: Дзен кофта | B78: меланж | C78: 50 | D78: 4650105137161 | E78: Дзен кофта, меланж, размер 50. Штрих-код: 4650105137161 | F78: 320
A79: Дзен кофта | B79: меланж | C79: 52 | D79: 4650105137178 | E79: Дзен кофта, меланж, размер 52. Штрих-код: 4650105137178 | F79: 320
A80: Дымка футболка | B80: белый | C80: 44 | D80: 4650105315484 | E80: Дымка футболка, белый, размер 44, Штрих-код 4650105315484 | F80: 250
A81: Дымка футболка | B81: белый | C81: 46 | D81: 4650105315491 | E81: Дымка футболка, белый, размер 46, Штрих-код 4650105315491 | F81: 250
A82: Дымка футболка | B82: белый | C82: 48 | D82: 4650105315507 | E82: Дымка футболка, белый, размер 48, Штрих-код 4650105315507 | F82: 250
A83: Дымка футболка | B83: белый | C83: 50 | D83: 4650105315514 | E83: Дымка футболка, белый, размер 50, Штрих-код 4650105315514 | F83: 250
A84: Дымка футболка | B84: белый | C84: 52 | D84: 4650105315521 | E84: Дымка футболка, белый, размер 52, Штрих-код 4650105315521 | F84: 250
A85: Дымка футболка | B85: белый | C85: 54 | D85: 4650105315538 | E85: Дымка футболка, белый, размер 54, Штрих-код 4650105315538 | F85: 250
A86: Дымка футболка | B86: белый | C86: 56 | D86: 4650105315545 | E86: Дымка футболка, белый, размер 56, Штрих-код 4650105315545 | F86: 250
A87: Дымка футболка | B87: белый | C87: 58 | D87: 4650105315552 | E87: Дымка футболка, белый, размер 58, Штрих-код 4650105315552 | F87: 250
A88: Дымка футболка | B88: меланж | C88: 44 | D88: 4650105315569 | E88: Дымка футболка, меланж, размер 44, Штрих-код 4650105315569 | F88: 250
A89: Дымка футболка | B89: меланж | C89: 46 | D89: 4650105315576 | E89: Дымка футболка, меланж, размер 46, Штрих-код 4650105315576 | F89: 250
A90: Дымка футболка | B90: меланж | C90: 48 | D90: 4650105315583 | E90: Дымка футболка, меланж, размер 48, Штрих-код 4650105315583 | F90: 250
A91: Дымка футболка | B91: меланж | C91: 50 | D91: 4650105315590 | E91: Дымка футболка, меланж, размер 50, Штрих-код 4650105315590 | F91: 250
A92: Дымка футболка | B92: меланж | C92: 52 | D92: 4650105315606 | E92: Дымка футболка, меланж, размер 52, Штрих-код 4650105315606 | F92: 250
A93: Дымка футболка | B93: меланж | C93: 54 | D93: 4650105315613 | E93: Дымка футболка, меланж, размер 54, Штрих-код 4650105315613 | F93: 250
A94: Дымка футболка | B94: меланж | C94: 56 | D94: 4650105315620 | E94: Дымка футболка, меланж, размер 56, Штрих-код 4650105315620 | F94: 250
A95: Дымка футболка | B95: меланж | C95: 58 | D95: 4650105315637 | E95: Дымка футболка, меланж, размер 58, Штрих-код 4650105315637 | F95: 250
A96: Зигзаг футболка | B96: белый | C96: 44 | D96: 4650105315248 | E96: Зигзаг футболка, белый, размер 44, Штрих-код 4650105315248 | F96: 250
A97: Зигзаг футболка | B97: белый | C97: 46 | D97: 4650105315255 | E97: Зигзаг футболка, белый, размер 46, Штрих-код 4650105315255 | F97: 250
A98: Зигзаг футболка | B98: белый | C98: 48 | D98: 4650105315262 | E98: Зигзаг футболка, белый, размер 48, Штрих-код 4650105315262 | F98: 250
A99: Зигзаг футболка | B99: белый | C99: 50 | D99: 4650105315279 | E99: Зигзаг футболка, белый, размер 50, Штрих-код 4650105315279 | F99: 250
A100: Зигзаг футболка | B100: белый | C100: 52 | D100: 4650105315286 | E100: Зигзаг футболка, белый, размер 52, Штрих-код 4650105315286 | F100: 250
A101: Зигзаг футболка | B101: белый | C101: 54 | D101: 4650105315293 | E101: Зигзаг футболка, белый, размер 54, Штрих-код 4650105315293 | F101: 250
A102: Зигзаг футболка | B102: белый | C102: 56 | D102: 4650105315309 | E102: Зигзаг футболка, белый, размер 56, Штрих-код 4650105315309 | F102: 250
A103: Зигзаг футболка | B103: белый | C103: 58 | D103: 4650105315316 | E103: Зигзаг футболка, белый, размер 58, Штрих-код 4650105315316 | F103: 250
A104: Зигзаг футболка | B104: меланж | C104: 44 | D104: 4650105315323 | E104: Зигзаг футболка, меланж, размер 44, Штрих-код 4650105315323 | F104: 250
A105: Зигзаг футболка | B105: меланж | C105: 46 | D105: 4650105315330 | E105: Зигзаг футболка, меланж, размер 46, Штрих-код 4650105315330 | F105: 250
A106: Зигзаг футболка | B106: меланж | C106: 48 | D106: 4650105315347 | E106: Зигзаг футболка, меланж, размер 48, Штрих-код 4650105315347 | F106: 250
A107: Зигзаг футболка | B107: меланж | C107: 50 | D107: 4650105315354 | E107: Зигзаг футболка, меланж, размер 50, Штрих-код 4650105315354 | F107: 250
A108: Зигзаг футболка | B108: меланж | C108: 52 | D108: 4650105315361 | E108: Зигзаг футболка, меланж, размер 52, Штрих-код 4650105315361 | F108: 250
A109: Зигзаг футболка | B109: меланж | C109: 54 | D109: 4650105315378 | E109: Зигзаг футболка, меланж, размер 54, Штрих-код 4650105315378 | F109: 250
A110: Зигзаг футболка | B110: меланж | C110: 56 | D110: 4650105315385 | E110: Зигзаг футболка, меланж, размер 56, Штрих-код 4650105315385 | F110: 250
A111: Зигзаг футболка | B111: меланж | C111: 58 | D111: 4650105315392 | E111: Зигзаг футболка, меланж, размер 58, Штрих-код 4650105315392 | F111: 250
A112: Турист трико | B112: черный | C112: 44 | D112: 2000003724437 | E112: Турист трико, черный, размер 44, Штрих-код 2000003724437 | F112: 380
A113: Турист трико | B113: черный | C113: 46 | D113: 2000003724444 | E113: Турист трико, черный, размер 46, Штрих-код 2000003724444 | F113: 380
A114: Турист трико | B114: черный | C114: 48 | D114: 2000003724451 | E114: Турист трико, черный, размер 48, Штрих-код 2000003724451 | F114: 380
A115: Турист трико | B115: черный | C115: 50 | D115: 2000003724468 | E115: Турист трико, черный, размер 50, Штрих-код 2000003724468 | F115: 380
A116: Турист трико | B116: черный | C116: 52 | D116: 2000003724475 | E116: Турист трико, черный, размер 52, Штрих-код 2000003724475 | F116: 380
A117: Турист трико | B117: черный | C117: 54 | D117: 2000003724482 | E117: Турист трико, черный, размер 54, Штрих-код 2000003724482 | F117: 380
A118: Турист трико | B118: черный | C118: 56 | D118: 2000003724499 | E118: Турист трико, черный, размер 56, Штрих-код 2000003724499 | F118: 380
A119: Турист трико | B119: черный | C119: 58 | D119: 2000003724505 | E119: Турист трико, черный, размер 58, Штрих-код 2000003724505 | F119: 380
A120: Дзен кофта | B120: меланж | C120: 44 | D120: 4650105276976 | E120: Хава кофта, меланж, размер 44. Штрих-код: 4650105276976 | F120: 380
A121: Хава кофта | B121: меланж | C121: 46 | D121: 4650105276983 | E121: Хава кофта, меланж, размер 46. Штрих-код: 4650105276983 | F121: 380
A122: Хава кофта | B122: меланж | C122: 48 | D122: 4650105276990 | E122: Хава кофта, меланж, размер 48. Штрих-код: 4650105276990 | F122: 380
A123: Хава кофта | B123: меланж | C123: 50 | D123: 4650105277003 | E123: Хава кофта, меланж, размер 50. Штрих-код: 4650105277003 | F123: 380
A124: Хава кофта | B124: меланж | C124: 52 | D124: 4650105277010 | E124: Хава кофта, меланж, размер 52. Штрих-код: 4650105277010 | F124: 380
A125: Хава кофта | B125: меланж | C125: 54 | D125: 4650105277027 | E125: Хава кофта, меланж, размер 54. Штрих-код: 4650105277027 | F125: 380
A126: Хава кофта | B126: меланж | C126: 56 | D126: 4650105277034 | E126: Хава кофта, меланж, размер 56. Штрих-код: 4650105277034 | F126: 380
A127: Хава кофта | B127: меланж | C127: 58 | D127: 4650105277041 | E127: Хава кофта, меланж, размер 58. Штрих код: 4650105277041 | F127: 380
A128: Хава кофта | B128: темно-синий | C128: 44 | D128: 4650105333099 | E128: Хава кофта, темно-синий, размер 44. Штрих код: 4650105333099 | F128: 380
A129: Хава кофта | B129: темно-синий | C129: 46 | D129: 4650105333105 | E129: Хава кофта, темно-синий, размер 46. Штрих код: 4650105333105 | F129: 380
A130: Хава кофта | B130: темно-синий | C130: 48 | D130: 4650105333112 | E130: Хава кофта, темно-синий, размер 48. Штрих код: 4650105333112 | F130: 380
A131: Хава кофта | B131: темно-синий | C131: 50 | D131: 4650105333129 | E131: Хава кофта, темно-синий, размер 50. Штрих-код: 4650105333129 | F131: 380
A132: Хава кофта | B132: темно-синий | C132: 52 | D132: 4650105333136 | E132: Хава кофта, темно-синий, размер 52. Штрих-код: 4650105333136 | F132: 380
A133: Хава кофта | B133: темно-синий | C133: 54 | D133: 4650105333143 | E133: Хава кофта, темно-синий, размер 54. Штрих-код: 4650105333143 | F133: 380
A134: Хава кофта | B134: темно-синий | C134: 56 | D134: 4650105333150 | E134: Хава кофта, темно-синий, размер 56. Штрих код: 4650105333150 | F134: 380
A135: Хава кофта | B135: темно-синий | C135: 58 | D135: 4650105333167 | E135: Хава кофта, темно-синий, размер 58. Штрих-код: 4650105333167 | F135: 380
